fUST/lending_fUST_20250822
["ID","MTS","AMOUNT","RATE_DAILY","PERIOD"]
[380645233,1755832246946,-160.9356585,0.00026658,2]
[380645234,1755832246955,-581.2325412,0.00026658,2]
[380645235,1755832246964,-153.0,0.00026658,2]
[380645236,1755832246973,-294.0594923,0.00026658,2]
[380645237,1755832246982,-581.2325412,0.00026658,2]
[380645239,1755832246991,-160.9356585,0.00026658,2]
[380645241,1755832247000,-294.0594923,0.00026658,2]
[380645243,1755832247009,-153.0,0.00026658,2]
[380645245,1755832247018,-581.2325412,0.00026658,2]
[380645247,1755832247027,-160.9356585,0.00026658,2]
[380645249,1755832247036,-293.3737619,0.00026658,2]
[380645251,1755832247045,-581.2325412,0.00026658,2]
[380645253,1755832247055,-160.9356585,0.00026658,2]
[380645255,1755832247064,-168.0,0.0002666,2]
[380645257,1755832247073,-200.0,0.00026716,2]
[380645259,1755832247082,-500.0,0.00026716,2]
[380645261,1755832247091,-500.0,0.00026822,14]
[380645263,1755832247101,-192.16585919,0.00026822,14]
[380645265,1755832247110,-5371.40887546,0.000269,2]
[380645267,1755832247119,-894.5402091,0.000269,2]
[380645269,1755832247130,-215.90555669,0.00026939,2]
[380645271,1755832247140,-160.0,0.00026941,2]
[380645273,1755832247149,-160.0,0.0002695,3]
[380645275,1755832247159,-160.91455311,0.0002695,5]
[380645277,1755832247168,-216.99125601,0.00026951,2]
[380645279,1755832247178,-160.0,0.00026952,2]
[380645281,1755832247188,-844.33851978,0.00026952,2]
[380645283,1755832247198,-6259.46,0.00027,4]
[380645284,1755832247207,-11748.7,0.00027,4]
[380645286,1755832247217,-43352.34,0.00027,4]
[380645288,1755832247226,-304140.3100916,0.00027,4]
[380645307,1755832952049,-160.0,0.000197,2]
[380645308,1755832952072,-1534.60928184,0.000197,2]
[380645309,1755832952094,-1200.0,0.00019799,2]
[380645310,1755832952116,-1200.0,0.00019799,2]
[380645311,1755832952139,-6784.42477521,0.000198,2]
[380645312,1755832952163,-457.62692561,0.000199,2]
[380645314,1755832997102,489.13747696,0.000199,2]
[380645315,1755833011749,302.45563732,0.00019801,2]
[380645316,1755833011779,453.68345598,0.00019999,4]
[380645317,1755833143128,-151.71114955,0.00020197,4]
[380645318,1755833143148,-513.84354553,0.000202,2]
[380645319,1755833143170,-489.13747696,0.0002101,2]
[380645320,1755833143192,-370.97501229,0.0002145,2]
[380645321,1755833143212,-160.0,0.00021667,2]
[380645322,1755833143233,-390.53705371,0.00021694,2]
[380645323,1755833163823,462.64949007,0.000199,2]
[380645326,1755833238090,-183.63534026,0.0002101,2]
[380645327,1755833315444,8809.4102,0.00018,2]
[380645328,1755833324466,3746.4650586,0.00019,2]
[380645329,1755833324698,175.19058328,0.00027477,120]
[380645330,1755833328280,441.10666217,0.000199,2]
[380645351,1755833432602,-441.10666216,0.0002101,2]
[380645352,1755833432612,-216.99125601,0.00021758,2]
[380645353,1755833432622,-160.0,0.00022118,2]
[380645354,1755833432631,-441.10666216,0.0002212,2]
[380645355,1755833432641,-2003.86240737,0.0002298,2]
[380645356,1755833432650,-218.76622444,0.00023129,73]
[380645357,1755833432659,-441.10666216,0.00023229,2]
[380645358,1755833432668,-1504.37352618,0.000239,2]
[380645359,1755833432678,-386.44,0.0002399,3]
[380645360,1755833432688,-300.0,0.00023999,2]
[380645361,1755833432697,-300.0,0.00023999,2]
[380645362,1755833432707,-300.0,0.00023999,2]
[380645363,1755833432716,-300.0,0.00023999,2]
[380645364,1755833432724,-300.0,0.00023999,2]
[380645366,1755833432734,-1200.0,0.00023999,2]
[380645368,1755833432743,-7843.03398816,0.00024,60]
[380645370,1755833432754,-1535.8914596,0.00024,60]
[380645379,1755833438488,-1446.16,0.00024,60]
[380645380,1755833438596,-3349.04948075,0.00024,60]
[380645381,1755833438607,-51472.81369041,0.00024,60]
[380645413,1755833440625,-829.28017256,0.00024,60]
[380645418,1755833440680,-4248.27778563,0.00024,60]
[380645420,1755833440735,-1097.26320787,0.00024,60]
[380645434,1755833443758,-849.80179425,0.00024,60]
[380645451,1755833446602,-305.85005261,0.00024,60]
[380645452,1755833446614,-673.65300294,0.00024,60]
[380645453,1755833446737,-42069.83783305,0.00024,60]
[380645454,1755833446748,-10195.89655923,0.00024,2]
[380645455,1755833446757,-333.55,0.00024,7]
[380645456,1755833446766,-441.10666216,0.00024339,2]
[380645457,1755833446775,-1504.37352612,0.00024397,2]
[380645458,1755833446785,-1504.37352612,0.00024893,2]
[380645459,1755833446795,-10727.6326994,0.00025,7]
[380645460,1755833446804,-160.0,0.00025,7]
[380645461,1755833446814,-1504.37352612,0.0002539,2]
[380645462,1755833446826,-441.10666216,0.00025449,3]
[380645463,1755833446835,-321.1696446,0.00025836,2]
[380645464,1755833446845,-1504.37352612,0.00025887,2]
[380645465,1755833446855,-637.0,0.00025934,2]
[380645466,1755833446865,-2146.588,0.00025934,2]
[380645467,1755833446874,-408.0,0.00025934,2]
[380645468,1755833446884,-39903.16056847,0.00026,30]
[380645469,1755833446893,-300.0,0.00026026,2]
[380645470,1755833446902,-378.0,0.00026026,2]
[380645471,1755833446913,-420.0,0.00026026,2]
[380645472,1755833446922,-305.0,0.00026026,2]
[380645473,1755833446931,-160.9356585,0.00026078,2]
[380645474,1755833446941,-1581.0,0.00026145,2]
[380645475,1755833446950,-581.2325412,0.00026178,2]
[380645476,1755833446960,-160.9356585,0.00026178,2]
[380645477,1755833446969,-160.9356585,0.00026178,2]
[380645478,1755833446979,-566.8420764,0.00026178,2]
[380645479,1755833446988,-250.64421187,0.00026201,2]
[380645480,1755833446997,-351.9819023,0.00026521,2]
[380645481,1755833447007,-441.10666216,0.00026559,5]
[380645482,1755833447016,-153.0,0.00026658,2]
[380645483,1755833447025,-2436.02388952,0.0002689,2]
[380645484,1755833447034,-376.07413479,0.00026929,2]
[380645485,1755833447044,-153.9638014,0.00026932,2]
[380645486,1755833447052,-500.0,0.00026973,2]
[380645487,1755833447062,-200.0,0.00026973,2]
[380645488,1755833447072,-1716.39452843,0.00026979,2]
[380645489,1755833447081,-28323.49638401,0.0002698,2]
[380645490,1755833447093,-617.77297548,0.0002698,2]
[380645491,1755833447104,-510.2507475,0.0002698,2]
[380645492,1755833492385,338.1817744,0.000199,2]
[380645493,1755833662058,20549.54630702,0.00027476,120]
[380645494,1755833669457,326.90904878,0.000199,2]
[380645495,1755833834920,316.01208041,0.000199,2]
[380645496,1755834011238,305.47834429,0.000199,2]
[380645498,1755834176914,295.29573292,0.000199,2]
[380645499,1755834233738,1481.20180023,0.00019111,2]
[380645500,1755834270079,400.0,0.0001,2]
[380645501,1755834337121,-448.92243111,0.0002091,2]
[380645502,1755834337143,-162.72818069,0.0002101,2]
[380645503,1755834342826,280.02826922,0.000199,2]
[380645505,1755834508790,270.69399356,0.000199,2]
[380645630,1755834637987,-302.57643837,0.00020905,6]
[380645632,1755834637997,-270.69399329,0.0002101,2]
[380645634,1755834638006,-32.85555863,0.0002212,2]
[380645688,1755834639724,-237.83843466,0.0002212,2]
[380645689,1755834639733,-300.0,0.00022899,2]
[380645690,1755834639743,-160.0,0.00022899,2]
[380645691,1755834639752,-1000.0,0.000229,2]
[380645692,1755834639762,-1000.0,0.000229,2]
[380645693,1755834639771,-83.9077591,0.000229,2]
[380645694,1755834639788,-916.0922409,0.000229,2]
[380645695,1755834639801,-1000.0,0.000229,2]
[380645696,1755834639810,-87.1710301,0.000229,2]
[380645697,1755834639835,-912.8289699,0.000229,2]
[380645699,1755834639845,-87.2270892,0.000229,2]
[380645712,1755834642932,-912.7729108,0.000229,2]
[380645713,1755834642941,-10000.0,0.000229,2]
[380645714,1755834642951,-270.69399329,0.00023229,2]
[380645715,1755834642965,-4206.55,0.00023999,2]
[380645716,1755834642976,-270.69399329,0.00024339,2]
[380645717,1755834642985,-420.0,0.00024861,2]
[380645718,1755834642995,-5083.03086615,0.00025,7]
[380645719,1755834643004,-270.69399329,0.00025449,3]
[380645720,1755834643013,-4206.55,0.00026191,4]
[380645721,1755834643023,-846.88300651,0.00026468,3]
[380645722,1755834643032,-973.0,0.00026532,2]
[380645723,1755834643041,-176.014,0.00026532,2]
[380645724,1755834643051,-408.0,0.00026532,2]
[380645725,1755834643061,-270.69399329,0.00026559,5]
[380645726,1755834643071,-587.839524,0.00026658,2]
[380645727,1755834643080,-160.8718701,0.00026658,2]
[380645728,1755834643089,-564.14007233,0.0002689,2]
[380645729,1755834643099,-1624.01592634,0.0002689,2]
[380645730,1755834643108,-160.0,0.0002695,5]
[380645731,1755834643118,-564.14007229,0.00026959,2]
[380645732,1755834643127,-532.62004632,0.00026973,2]
[380645733,1755834643137,-500.0,0.00026973,2]
[380645734,1755834643146,-500.0,0.00026973,2]
[380645735,1755834643155,-160.92007172,0.00026973,2]
[380645736,1755834643165,-512.13917913,0.00026973,2]
[380645737,1755834643177,-262.54901331,0.00026989,2]
[380645738,1755834643198,-500.0,0.00026989,2]
[380645739,1755834643210,-500.0,0.00026989,2]
[380645740,1755834643219,-500.0,0.00026989,2]
[380645741,1755834643229,-500.0,0.00026989,2]
[380645742,1755834643238,-589.73326017,0.00026989,2]
[380645743,1755834643247,-503.81093719,0.00026989,2]
[380645744,1755834643257,-85461.64327048,0.0002699,2]
[380645788,1755834645987,-253111.2218004,0.0002699,2]
[380645790,1755834645999,-282.72,0.0002699,2]
[380645793,1755834646011,-28585.4883802,0.0002699,2]
[380646093,1755834673564,207.53206159,0.000199,2]
[380646094,1755834847202,200.61432631,0.000199,2]
[380646095,1755835012081,193.92718209,0.000199,2]
[380646096,1755835123010,302.45563732,0.00019801,2]
[380646097,1755835159387,303.22158703,0.0002,2]
[380646098,1755835177195,187.4629426,0.000199,2]
[380646100,1755835342112,181.21417804,0.000199,2]
[380646101,1755835507950,175.1737054,0.000199,2]
[380646102,1755835671741,169.33458179,0.000199,2]
[380646197,1755835835426,-807.8,0.0002091,2]
[380646211,1755835837127,163.69009574,0.000199,2]
[380646281,1755835846281,-163.69009559,0.0002101,2]
[380646282,1755835846291,-150.0,0.000219,2]
[380646283,1755835846300,-163.69009559,0.0002212,2]
[380646284,1755835846310,-215.90555669,0.00022895,2]
[380646285,1755835846319,-163.69009559,0.00023229,2]
[380646286,1755835846328,-1020.27889097,0.00023712,2]
[380646287,1755835846337,-215.99999655,0.00023722,2]
[380646288,1755835846347,-2159.9999655,0.00023761,2]
[380646290,1755835846356,-1554.31944136,0.00023761,2]
[380646291,1755835846365,-2159.9999655,0.00023765,2]
[380646292,1755835846374,-215.99999655,0.00023771,2]
[380646293,1755835846383,-1554.31944136,0.00023771,2]
[380646294,1755835846393,-1020.27889097,0.00023796,2]
[380646295,1755835846403,-12692.97277622,0.00023818,2]
[380646296,1755835846412,-300.0,0.00023828,2]
[380646297,1755835846422,-160.0,0.0002399,2]
[380646298,1755835846432,-376.07413479,0.0002399,2]
[380646299,1755835846442,-232.32572668,0.0002399,2]
[380646300,1755835846451,-160.0,0.00023991,2]
[380646301,1755835846463,-163.69009559,0.00024339,2]
[380646302,1755835846473,-163.69009559,0.00025449,3]
[380646303,1755835846483,-420.0,0.00025844,2]
[380646304,1755835846494,-408.0,0.00026058,2]
[380646305,1755835846504,-971.559,0.00026533,2]
[380646306,1755835846514,-163.69009559,0.00026559,5]
[380646307,1755835846523,-171.849962,0.00026701,20]
[380646308,1755835846533,-168.0,0.00026726,2]
[380646309,1755835846542,-168.0,0.00026889,2]
[380646310,1755835846551,-2428.39482581,0.000269,2]
[380646311,1755835846561,-500.0,0.00026973,2]
[380646312,1755835846570,-524.60221954,0.00026973,2]
[380646313,1755835846580,-500.0,0.0002698,2]
[380646314,1755835846589,-374.84,0.0002698,10]
[380646315,1755835846599,-171.849962,0.00026989,5]
[380646316,1755835846608,-3856.01,0.00026989,2]
[380646317,1755835846618,-183.78430932,0.00026989,2]
[380646318,1755835846628,-232.19258446,0.00026989,2]
[380646319,1755835846637,-435775.90530314,0.0002699,2]
[380646320,1755835846649,-857.62308217,0.0002699,2]
[380646321,1755835846681,-13633.22633369,0.0002699,2]
[380646322,1755835846690,-7870.97176767,0.0002699,2]
[380646324,1755836614572,2704.05,0.0002,10]
[380646325,1755836681110,151.71114955,0.000199,4]
[380646326,1755836744106,-160.0,0.00020396,2]
[380646327,1755836744127,-513.84354553,0.000204,2]
[380646328,1755836744148,-1255.90532989,0.00020602,2]
[380646329,1755836818745,167.81832355,0.000199,2]
[380646330,1755836836256,-183.63534026,0.00020396,2]
[380646331,1755836848842,521.46337403,0.0001922,2]
[380646333,1755836983789,182.12120232,0.000199,2]
[380646334,1755836992498,1095.86927679,0.0002,2]
[380646360,1755837032244,-699.62160212,0.0002081,2]
[380646362,1755837032254,-182.1212021,0.0002101,2]
[380646363,1755837032263,-182.1212021,0.0002212,2]
[380646365,1755837032272,-160.0,0.00023,2]
[380646367,1755837032282,-182.1212021,0.00023229,2]
[380646370,1755837032291,-5385.08805339,0.00023708,2]
[380646372,1755837032302,-5385.08805339,0.00023744,2]
[380646374,1755837032311,-203.37123889,0.00023748,2]
[380646376,1755837032320,-202.10836312,0.00023763,2]
[380646378,1755837032330,-202.10836312,0.0002377,2]
[380646379,1755837032339,-203.37123889,0.00023785,2]
[380646380,1755837032348,-182.1212021,0.00024339,2]
[380646381,1755837032357,-250.0,0.00025435,2]
[380646382,1755837032366,-182.1212021,0.00025449,3]
[380646384,1755837032376,-1808.183106,0.00026,30]
[380646385,1755837032385,-182.1212021,0.00026559,5]
[380646386,1755837032394,-171.849963,0.00026701,20]
[380646387,1755837032403,-408.0,0.00026767,2]
[380646389,1755837032413,-477.26692837,0.00026874,2]
[380646391,1755837032423,-300.0,0.00026889,2]
[380646393,1755837032432,-77.82894898,0.0002689,2]
[380646397,1755837032454,-361.09714345,0.0002689,2]
[380646398,1755837032462,-843.82655336,0.0002689,2]
[380646408,1755837038265,-1527.94596168,0.0002689,2]
[380646409,1755837038319,-144.30239656,0.0002689,2]
[380646410,1755837038328,-477.26692837,0.00026946,2]
[380646411,1755837038337,-151.380392,0.00026974,2]
[380646412,1755837038347,-151.0,0.00026974,2]
[380646413,1755837038356,-300.0,0.00026974,2]
[380646414,1755837038365,-151.0,0.00026974,2]
[380646415,1755837038374,-151.0,0.00026974,2]
[380646416,1755837038384,-300.0,0.00026974,2]
[380646417,1755837038393,-151.0,0.00026974,2]
[380646418,1755837038402,-151.0,0.00026974,2]
[380646419,1755837038411,-151.0,0.00026974,2]
[380646420,1755837038420,-151.0,0.00026974,2]
[380646421,1755837038429,-151.0,0.00026974,2]
[380646422,1755837038439,-151.0,0.00026974,2]
[380646423,1755837038448,-151.0,0.00026974,2]
[380646424,1755837038457,-151.0,0.00026974,2]
[380646425,1755837038466,-300.0,0.00026974,2]
[380646426,1755837038475,-151.0,0.00026974,2]
[380646427,1755837038484,-151.0,0.00026974,2]
[380646428,1755837038493,-151.0,0.00026974,2]
[380646429,1755837038503,-300.0,0.00026974,2]
[380646430,1755837038511,-151.0,0.00026974,2]
[380646431,1755837038520,-151.0,0.00026974,2]
[380646432,1755837038530,-151.0,0.00026974,2]
[380646433,1755837038539,-323.21924273,0.00026974,2]
[380646435,1755837038548,-151.0,0.00026974,2]
[380646437,1755837038557,-151.0,0.00026974,2]
[380646439,1755837038566,-151.0,0.00026974,2]
[380646441,1755837038575,-151.0,0.00026974,2]
[380646442,1755837038584,-151.0,0.00026974,2]
[380646443,1755837038593,-151.0,0.00026974,2]
[380646444,1755837038606,-2030.296672,0.00026974,2]
[380646445,1755837038616,-289.74863744,0.00026974,2]
[380646446,1755837038625,-151.0,0.00026974,2]
[380646448,1755837038634,-151.0,0.00026974,2]
[380646450,1755837038643,-151.0,0.00026974,2]
[380646452,1755837038652,-151.0,0.00026974,2]
[380646453,1755837038662,-151.0,0.00026974,2]
[380646454,1755837038671,-151.0,0.00026974,2]
[380646455,1755837038681,-151.0,0.00026974,2]
[380646456,1755837038691,-151.0,0.00026974,2]
[380646457,1755837038700,-151.0,0.00026974,2]
[380646458,1755837038709,-151.0,0.00026974,2]
[380646460,1755837038718,-151.0,0.00026974,2]
[380646462,1755837038727,-151.0,0.00026974,2]
[380646464,1755837038737,-151.0,0.00026974,2]
[380646466,1755837038746,-151.0,0.00026974,2]
[380646468,1755837038755,-151.0,0.00026974,2]
[380646470,1755837038764,-151.0,0.00026974,2]
[380646472,1755837038773,-151.0,0.00026974,2]
[380646474,1755837038782,-151.0,0.00026974,2]
[380646476,1755837038791,-151.0,0.00026974,2]
[380646478,1755837038800,-270.32565093,0.00026974,2]
[380646480,1755837038810,-151.0,0.00026974,2]
[380646482,1755837038819,-151.0,0.00026974,2]
[380646484,1755837038828,-151.0,0.00026974,2]
[380646486,1755837038837,-151.0,0.00026974,2]
[380646488,1755837038846,-151.0,0.00026974,2]
[380646490,1755837038857,-151.0,0.00026974,2]
[380646493,1755837038868,-151.0,0.00026974,2]
[380646495,1755837038881,-17988.73875143,0.00026974,2]
[380646497,1755837038893,-151.0,0.00026974,2]
[380646500,1755837038905,-151.0,0.00026974,2]
[380646502,1755837038916,-199.34863401,0.00026974,2]
[380646504,1755837038927,-1000.0,0.00026974,2]
[380646506,1755837038938,-1000.0,0.00026974,2]
[380646508,1755837038949,-1000.0,0.00026974,2]
[380646510,1755837038960,-1000.0,0.00026974,2]
[380646513,1755837038972,-1000.0,0.00026974,2]
[380646515,1755837038984,-1000.0,0.00026974,2]
[380646517,1755837038996,-1000.0,0.00026974,2]
[380646519,1755837039008,-1000.0,0.00026974,2]
[380646521,1755837039019,-1000.0,0.00026974,2]
[380646524,1755837039031,-1000.0,0.00026974,2]
[380646526,1755837039044,-1000.0,0.00026974,2]
[380646528,1755837039056,-1000.0,0.00026974,2]
[380646531,1755837039067,-1000.0,0.00026974,2]
[380646533,1755837039079,-500.0,0.00026974,2]
[380646535,1755837039091,-151.0,0.0002698,10]
[380646537,1755837039102,-151.0,0.0002698,10]
[380646540,1755837039113,-3695.34,0.00026989,2]
[380646542,1755837039126,-7992.37254917,0.0002699,2]
[380649840,1755837256686,4126.66726625,0.0002,2]
[380649844,1755837947123,-448.92243111,0.00020196,2]
[380649845,1755837947143,-294.53800705,0.00020296,2]
[380649868,1755838232566,-996.36017979,0.00020296,2]
[380649871,1755838232577,-6848.9779697,0.00020296,2]
[380649873,1755838232586,-1200.0,0.00021897,2]
[380649875,1755838232595,-160.0,0.00021898,2]
[380649877,1755838232605,-300.0,0.00022116,2]
[380649879,1755838232614,-268.0,0.00022117,2]
[380649881,1755838232623,-300.0,0.00022117,2]
[380649883,1755838232632,-300.0,0.00022117,2]
[380649885,1755838232641,-300.0,0.00022117,2]
[380649887,1755838232650,-300.0,0.00022117,2]
[380649889,1755838232659,-216.99125601,0.00022118,2]
[380649890,1755838232668,-160.0,0.00022118,2]
[380649893,1755838232677,-160.0,0.00022118,2]
[380649895,1755838232686,-160.0,0.00023,2]
[380649897,1755838232695,-420.0,0.00024031,2]
[380649899,1755838232704,-2030.296672,0.00025689,2]
[380649901,1755838232714,-2105.41764886,0.00025744,2]
[380649903,1755838232723,-613.63903652,0.00025799,2]
[380649905,1755838232732,-587.0,0.0002611,2]
[380649907,1755838232741,-220.112,0.00026746,2]
[380649909,1755838232750,-150.39,0.00026746,2]
[380649911,1755838232759,-422.62956061,0.00026874,2]
[380649914,1755838232768,-1677.3832744,0.0002689,2]
[380649916,1755838232777,-351.14087392,0.000269,2]
[380649918,1755838232789,-422.62956059,0.00026946,2]
[380649921,1755838232798,-344.71,0.0002697,10]
[380649923,1755838232808,-500.0,0.00026973,2]
[380649925,1755838232817,-500.0,0.00026973,2]
[380649927,1755838232827,-151.0,0.00026974,2]
[380649929,1755838232836,-151.0,0.00026974,2]
[380649931,1755838232845,-151.0,0.00026974,2]
[380649933,1755838232854,-151.62618383,0.00026974,2]
[380649935,1755838232863,-151.0,0.00026974,2]
[380649937,1755838232871,-151.0,0.00026974,2]
[380649939,1755838232880,-151.0,0.00026974,2]
[380649941,1755838232889,-151.0,0.00026974,2]
[380649943,1755838232898,-151.0,0.00026974,2]
[380649945,1755838232907,-151.0,0.00026974,2]
[380649947,1755838232916,-151.0,0.00026974,2]
[380649949,1755838232925,-151.0,0.00026974,2]
[380649951,1755838232934,-151.0,0.00026974,2]
[380649953,1755838232943,-151.0,0.00026974,2]
[380649955,1755838232952,-161.88064886,0.00026974,2]
[380649957,1755838232963,-151.0,0.00026974,2]
[380649959,1755838232972,-155.49593174,0.00026974,2]
[380649961,1755838232981,-7160.96600331,0.00026974,2]
[380649963,1755838232992,-5217.98564903,0.00026974,2]
[380649965,1755838233001,-200.0,0.00026979,10]
[380649967,1755838233010,-196.267425,0.00026979,10]
[380649969,1755838233019,-500.0,0.00026979,2]
[380649971,1755838233029,-500.0,0.00026979,2]
[380649973,1755838233038,-500.0,0.00026979,2]
[380649975,1755838233048,-500.0,0.00026979,2]
[380649977,1755838233057,-500.0,0.00026979,2]
[380649979,1755838233066,-500.0,0.00026979,2]
[380649981,1755838233075,-500.0,0.00026979,2]
[380649983,1755838233084,-330.6306279,0.00026979,2]
[380649985,1755838233093,-617.12809526,0.00026979,2]
[380649987,1755838233103,-500.0,0.00026979,2]
[380649989,1755838233117,-500.0,0.00026979,2]
[380649991,1755838233126,-489.85091721,0.00026979,2]
[380649993,1755838233138,-10.14908279,0.00026979,2]
[380649995,1755838233148,-418.91965416,0.00026979,2]
[380650072,1755838238538,-160.0,0.00021898,2]
[380650074,1755838238547,-81.08034584,0.00026979,2]
[380650076,1755838238556,-500.0,0.00026979,2]
[380650078,1755838238565,-500.0,0.00026979,2]
[380650080,1755838238575,-500.0,0.00026979,2]
[380650082,1755838238584,-500.0,0.00026979,2]
[380650085,1755838238594,-467.57132624,0.00026979,2]
[380650088,1755838238603,-500.0,0.00026979,2]
[380650090,1755838238613,-500.0,0.00026979,2]
[380650092,1755838238623,-418.01559417,0.00026979,2]
[380650301,1755838240636,-81.98440583,0.00026979,2]
[380650303,1755838240646,-500.0,0.00026979,2]
[380650308,1755838240754,-500.0,0.00026979,2]
[380650309,1755838240764,-375.79718159,0.00026979,2]
[380655357,1755838949928,361.74383003,0.000199,2]
[380655358,1755839047455,6932.48443213,0.0001911,2]
[380655360,1755839121673,364.3892577,0.000199,2]
[380655363,1755839286589,352.24294911,0.000199,2]
[380655366,1755839371965,160.0,0.0002,3]
[380655367,1755839372791,160.0,0.0002,3]
[380655368,1755839391967,294.0,0.000199,4]
[380655430,1755839437667,-515.18017906,0.00020386,2]
[380655431,1755839437679,-850.38999,0.00020386,2]
[380655461,1755839439725,-3634.42983094,0.00020386,2]
[380655464,1755839439734,-352.24294889,0.0002101,2]
[380655465,1755839439743,-175.73958362,0.000219,2]
[380655761,1755839442878,-519.47999996,0.000219,2]
[380655773,1755839442989,-289.54641168,0.000219,2]
[380656091,1755839446048,-207.05089874,0.000219,2]
[380656093,1755839446058,-1200.0,0.00022006,2]
[380656095,1755839446068,-1200.0,0.00022007,2]
[380656097,1755839446077,-300.0,0.00022007,2]
[380656100,1755839446094,-300.0,0.00022007,2]
[380656102,1755839446108,-300.0,0.00022007,2]
[380656104,1755839446118,-300.0,0.00022007,2]
[380656106,1755839446128,-300.0,0.00022007,2]
[380656109,1755839446139,-8355.16236065,0.00022008,2]
[380656111,1755839446148,-216.99125601,0.00022009,2]
[380656112,1755839446158,-160.0,0.00022009,2]
[380656114,1755839446168,-844.33851978,0.00022009,2]
[380656117,1755839446178,-160.0,0.00022009,2]
[380656119,1755839446188,-160.0,0.00022009,2]
[380656121,1755839446198,-215.90555669,0.00022009,2]
[380656123,1755839446207,-500.0,0.000221,2]
[380656125,1755839446217,-502.83845701,0.000221,2]
[380656127,1755839446227,-501.63974032,0.000221,2]
[380656128,1755839446236,-500.0,0.000221,2]
[380656129,1755839446246,-500.0,0.000221,2]
[380656130,1755839446256,-502.53442711,0.000221,2]
[380656131,1755839446269,-500.0,0.000221,2]
[380656132,1755839446278,-512.06810708,0.000221,2]
[380656133,1755839446288,-218.76622444,0.000222,69]
[380656134,1755839446298,-1000.0,0.00022648,2]
[380656135,1755839446307,-897.95830618,0.00022648,2]
[380656136,1755839446316,-160.0,0.00023,2]
[380656137,1755839446325,-212.00383473,0.00023716,2]
[380656138,1755839446335,-212.00383473,0.00023731,2]
[380656139,1755839446344,-626.68015081,0.00023738,2]
[380656140,1755839446354,-626.68015081,0.00023772,2]
[380656141,1755839446363,-1593.0,0.00023914,2]
[380656142,1755839446373,-420.0,0.00023914,2]
[380656143,1755839446382,-300.0,0.00023914,2]
[380656144,1755839446391,-1680.0,0.00024025,2]
[380656145,1755839446401,-287.0,0.00025986,2]
[380656146,1755839446411,-160.0,0.00026,4]
[380656147,1755839446423,-160.0,0.00026,4]
[380656148,1755839446436,-160.0,0.00026,4]
[380656149,1755839446446,-720.0,0.0002623,2]
[380656150,1755839446455,-232.32572668,0.00026461,2]
[380656151,1755839446464,-160.0,0.000265,5]
[380656152,1755839446473,-160.0,0.000265,5]
[380656153,1755839446482,-160.0,0.000265,5]
[380656154,1755839446492,-352.24294889,0.00026559,5]
[380656155,1755839446501,-321.7437402,0.00026658,2]
[380656156,1755839446511,-305.3693563,0.00026658,2]
[380656158,1755839446520,-153.0,0.00026658,2]
[380656159,1755839446530,-294.0594923,0.00026658,2]
[380656161,1755839446540,-160.8718701,0.00026658,2]
[380656163,1755839446549,-306.0,0.00026658,2]
[380656165,1755839446558,-581.2325412,0.00026658,2]
[380656167,1755839446568,-294.0594923,0.00026658,2]
[380656169,1755839446578,-581.2325412,0.00026658,2]
[380656171,1755839446587,-581.2325412,0.00026658,2]
[380656173,1755839446596,-294.0594923,0.00026658,2]
[380656175,1755839446605,-294.0594923,0.00026658,2]
[380656177,1755839446615,-581.2325412,0.00026658,2]
[380656179,1755839446624,-294.0594923,0.00026658,2]